[Event "*** Titled Tuesday Blitz"]
[Site "Chess.com"]
[Date "2019.01.01"]
[Round "2"]
[White "Zufi1811"]
[Black "pastouche06"]
[Result "0-1"]
[WhiteElo "2418"]
[BlackElo "2435"]
[TimeControl "180+2"]
[EndTime "13:21:13 PST"]
[Termination "pastouche06 won on time"]

1. e4 {[%clk 0:03:01.9]} 1... c6 {[%clk 0:03:01.2]} 2. d4 {[%clk 0:03:01]} 2...
d5 {[%clk 0:03:02.5]} 3. Nc3 {[%clk 0:03:02.5]} 3... dxe4 {[%clk 0:03:02.9]} 4.
Nxe4 {[%clk 0:03:04.4]} 4... Nf6 {[%clk 0:03:04.3]} 5. Nxf6+ {[%clk 0:03:04.8]}
5... exf6 {[%clk 0:03:06.2]} 6. c3 {[%clk 0:02:59.2]} 6... Bd6 {[%clk
0:03:06.8]} 7. Bd3 {[%clk 0:03:00.7]} 7... O-O {[%clk 0:03:07.7]} 8. Qc2 {[%clk
0:03:01.4]} 8... Re8+ {[%clk 0:03:08.9]} 9. Ne2 {[%clk 0:03:00.2]} 9... h5
{[%clk 0:03:09.6]} 10. Be3 {[%clk 0:03:01.2]} 10... Nd7 {[%clk 0:03:10]} 11.
O-O-O {[%clk 0:03:01.9]} 11... Nf8 {[%clk 0:03:11.6]} 12. Kb1 {[%clk 0:02:59.6]}
12... Be6 {[%clk 0:03:08.9]} 13. Ng3 {[%clk 0:02:49.1]} 13... g6 {[%clk
0:02:50.8]} 14. Ne4 {[%clk 0:02:43.7]} 14... b5 {[%clk 0:02:39.3]} 15. h3 {[%clk
0:02:35.7]} 15... a5 {[%clk 0:02:35.2]} 16. g4 {[%clk 0:02:36.3]} 16... h4
{[%clk 0:02:36.4]} 17. g5 {[%clk 0:02:29.1]} 17... Be7 {[%clk 0:02:14.8]} 18.
gxf6 {[%clk 0:02:27]} 18... Bxf6 {[%clk 0:02:16.7]} 19. Rdg1 {[%clk 0:02:12]}
19... a4 {[%clk 0:02:03.3]} 20. Nxf6+ {[%clk 0:02:07.7]} 20... Qxf6 {[%clk
0:02:05.2]} 21. Bg5 {[%clk 0:02:08.1]} 21... Qf3 {[%clk 0:01:57.2]} 22. Bxh4
{[%clk 0:01:54.8]} 22... Qd5 {[%clk 0:01:56.5]} 23. a3 {[%clk 0:01:44.3]} 23...
c5 {[%clk 0:01:27.7]} 24. Bf6 {[%clk 0:01:05.6]} 24... cxd4 {[%clk 0:01:15.3]}
25. Bxd4 {[%clk 0:01:07.5]} 25... b4 {[%clk 0:01:16.8]} 26. Bxg6 {[%clk
0:00:57.4]} 26... Nxg6 {[%clk 0:00:52.3]} 27. Rxg6+ {[%clk 0:00:59.3]} 27... Kf8
{[%clk 0:00:53.7]} 28. Rhg1 {[%clk 0:00:46.3]} 28... Bf5 {[%clk 0:00:49.8]} 29.
Bg7+ {[%clk 0:00:14.8]} 29... Ke7 {[%clk 0:00:48.8]} 30. Bf6+ {[%clk 0:00:15.8]}
30... Kd7 {[%clk 0:00:45.3]} 31. R6g5 {[%clk 0:00:08.2]} 31... Bxc2+ {[%clk
0:00:37.9]} 32. Kxc2 {[%clk 0:00:10.1]} 32... Qb3+ {[%clk 0:00:35.4]} 33. Kb1
{[%clk 0:00:09.3]} 33... bxa3 {[%clk 0:00:34.9]} 0-1

[Event "*** Titled Tuesday Blitz"]
[Site "Chess.com"]
[Date "2019.01.01"]
[Round "2"]
[White "Yaacovn"]
[Black "Shahinyan_ChessMood"]
[Result "0-1"]
[WhiteElo "2690"]
[BlackElo "2695"]
[TimeControl "180+2"]
[EndTime "13:21:16 PST"]
[Termination "Shahinyan_ChessMood won by resignation"]

1. d4 {[%clk 0:02:57]} 1... e6 {[%clk 0:03:00.6]} 2. Nf3 {[%clk 0:02:57.2]} 2...
f5 {[%clk 0:03:01.4]} 3. g3 {[%clk 0:02:57.8]} 3... Nf6 {[%clk 0:03:02.7]} 4.
Bg2 {[%clk 0:02:59]} 4... d5 {[%clk 0:03:04.6]} 5. O-O {[%clk 0:02:59.6]} 5...
Bd6 {[%clk 0:03:06.1]} 6. b3 {[%clk 0:03:00.5]} 6... Qe7 {[%clk 0:03:06.3]} 7.
c4 {[%clk 0:03:00.9]} 7... c6 {[%clk 0:03:07.6]} 8. a4 {[%clk 0:03:01.3]} 8...
a5 {[%clk 0:03:08.1]} 9. Ba3 {[%clk 0:03:01.9]} 9... Na6 {[%clk 0:03:08.8]} 10.
Bxd6 {[%clk 0:03:02]} 10... Qxd6 {[%clk 0:03:10.7]} 11. Nc3 {[%clk 0:03:03.4]}
11... O-O {[%clk 0:03:11.6]} 12. e3 {[%clk 0:03:03.7]} 12... b6 {[%clk
0:03:12.9]} 13. Ne1 {[%clk 0:03:04.2]} 13... Bb7 {[%clk 0:03:13.9]} 14. Nd3
{[%clk 0:03:04.9]} 14... Ne4 {[%clk 0:03:15.3]} 15. Rc1 {[%clk 0:03:02.7]} 15...
Nb4 {[%clk 0:03:13.2]} 16. Nxb4 {[%clk 0:03:02.3]} 16... Qxb4 {[%clk 0:02:59.3]}
17. Nxe4 {[%clk 0:03:02.5]} 17... fxe4 {[%clk 0:03:01.2]} 18. Bh3 {[%clk
0:03:01.9]} 18... Rf6 {[%clk 0:02:58.5]} 19. Qc2 {[%clk 0:02:55.6]} 19... Raf8
{[%clk 0:02:53.2]} 20. Qc3 {[%clk 0:02:55.9]} 20... Qe7 {[%clk 0:02:46.2]} 21.
Rc2 {[%clk 0:02:51.4]} 21... Qf7 {[%clk 0:02:42.7]} 22. Bg2 {[%clk 0:02:28.9]}
22... Qh5 {[%clk 0:02:27.4]} 23. c5 {[%clk 0:02:11.7]} 23... bxc5 {[%clk
0:02:22.1]} 24. Qxc5 {[%clk 0:02:11.7]} 24... Ba6 {[%clk 0:02:22.8]} 25. Re1
{[%clk 0:02:12.2]} 25... Qf7 {[%clk 0:02:03.4]} 26. Qxa5 {[%clk 0:02:05.4]}
26... Bd3 {[%clk 0:01:54.4]} 27. Rd2 {[%clk 0:01:45.8]} 27... Rxf2 {[%clk
0:01:51.4]} 28. Qc3 {[%clk 0:01:42.5]} 28... h5 {[%clk 0:01:32.7]} 29. Qb2
{[%clk 0:01:41.5]} 29... Rf6 {[%clk 0:01:09.1]} 30. h4 {[%clk 0:01:41.4]} 30...
g5 {[%clk 0:00:56.5]} 31. hxg5 {[%clk 0:01:40.7]} 31... Rf5 {[%clk 0:00:56.1]}
32. Kh2 {[%clk 0:01:14.6]} 32... Qc7 {[%clk 0:00:48.3]} 33. Bh3 {[%clk
0:01:12.8]} 33... Rf3 {[%clk 0:00:44.5]} 34. Rg2 {[%clk 0:01:10.2]} 34... h4
{[%clk 0:00:45.6]} 35. Bxe6+ {[%clk 0:01:09.3]} 35... Kg7 {[%clk 0:00:46.4]} 36.
Reg1 {[%clk 0:00:58]} 36... hxg3+ {[%clk 0:00:40.9]} 37. Rxg3 {[%clk 0:00:58.3]}
37... Rf2+ {[%clk 0:00:41.1]} 38. Rg2 {[%clk 0:00:56.8]} 38... Rh8+ {[%clk
0:00:22.8]} 39. Kg1 {[%clk 0:00:57.4]} 39... Rxb2 {[%clk 0:00:23.1]} 0-1

[Event "*** Titled Tuesday Blitz"]
[Site "Chess.com"]
[Date "2019.01.01"]
[Round "2"]
[White "IMAghasiyevKamal"]
[Black "GhostOfGreenval"]
[Result "1/2-1/2"]
[WhiteElo "2542"]
[BlackElo "2736"]
[TimeControl "180+2"]
[EndTime "13:21:21 PST"]
[Termination "Game drawn by repetition"]

1. d4 {[%clk 0:03:01.9]} 1... Nf6 {[%clk 0:02:59.9]} 2. c4 {[%clk 0:03:02.2]}
2... c5 {[%clk 0:03:01.3]} 3. Nf3 {[%clk 0:02:59.3]} 3... cxd4 {[%clk
0:02:56.9]} 4. Nxd4 {[%clk 0:03:00.1]} 4... Nc6 {[%clk 0:02:57.9]} 5. g3 {[%clk
0:02:56]} 5... g6 {[%clk 0:02:55.5]} 6. Bg2 {[%clk 0:02:54.7]} 6... Bg7 {[%clk
0:02:56.5]} 7. O-O {[%clk 0:02:55.5]} 7... O-O {[%clk 0:02:57.6]} 8. Nc3 {[%clk
0:02:54.8]} 8... d6 {[%clk 0:02:44.3]} 9. b3 {[%clk 0:02:40]} 9... Bd7 {[%clk
0:02:27.1]} 10. Bb2 {[%clk 0:02:36.1]} 10... Rc8 {[%clk 0:02:26.5]} 11. Nxc6
{[%clk 0:02:23.8]} 11... Bxc6 {[%clk 0:02:28.4]} 12. Nd5 {[%clk 0:02:23]} 12...
Bxd5 {[%clk 0:02:23.9]} 13. cxd5 {[%clk 0:02:24.1]} 13... Qa5 {[%clk 0:02:19.2]}
14. a3 {[%clk 0:02:18]} 14... Rc7 {[%clk 0:02:14.5]} 15. Qd3 {[%clk 0:02:16.9]}
15... Nd7 {[%clk 0:02:09.5]} 16. Bxg7 {[%clk 0:02:14.2]} 16... Kxg7 {[%clk
0:02:11.4]} 17. b4 {[%clk 0:02:07.9]} 17... Qa4 {[%clk 0:02:07.9]} 18. Rac1
{[%clk 0:02:07.1]} 18... Rfc8 {[%clk 0:02:07.7]} 19. Rxc7 {[%clk 0:02:07.2]}
19... Rxc7 {[%clk 0:02:09.6]} 20. f4 {[%clk 0:01:49.5]} 20... f6 {[%clk
0:01:53.3]} 21. Qe3 {[%clk 0:01:35.9]} 21... Nb6 {[%clk 0:01:52]} 22. Rc1 {[%clk
0:01:36.4]} 22... Rxc1+ {[%clk 0:01:31.4]} 23. Qxc1 {[%clk 0:01:36.8]} 23... Qb3
{[%clk 0:01:15.4]} 24. Qc7 {[%clk 0:01:27.4]} 24... Kf7 {[%clk 0:01:04.4]} 25.
Qd8 {[%clk 0:01:10.6]} 25... Qd1+ {[%clk 0:00:47.4]} 26. Kf2 {[%clk 0:01:11.1]}
26... Qd4+ {[%clk 0:00:48.3]} 27. Kf1 {[%clk 0:01:08.8]} 27... Nc4 {[%clk
0:00:40.3]} 28. Bf3 {[%clk 0:01:04.5]} 28... Ne3+ {[%clk 0:00:38.2]} 29. Ke1
{[%clk 0:01:03.1]} 29... Nc2+ {[%clk 0:00:32.7]} 30. Kf1 {[%clk 0:01:01.6]}
30... Ne3+ {[%clk 0:00:34.6]} 31. Ke1 {[%clk 0:01:02.6]} 31... f5 {[%clk
0:00:36]} 32. Qc8 {[%clk 0:00:59.9]} 32... Nc4 {[%clk 0:00:21]} 33. Qe6+ {[%clk
0:00:59.8]} 33... Kf8 {[%clk 0:00:21.5]} 34. Qc8+ {[%clk 0:00:59.2]} 34... Kg7
{[%clk 0:00:23.1]} 35. Kf1 {[%clk 0:00:55.5]} 35... Ne3+ {[%clk 0:00:23.2]} 36.
Ke1 {[%clk 0:00:55.7]} 36... Nxd5 {[%clk 0:00:17.9]} 37. Qxb7 {[%clk 0:00:55.1]}
37... Qg1+ {[%clk 0:00:14.7]} 38. Kd2 {[%clk 0:00:54.7]} 38... Qd4+ {[%clk
0:00:16.6]} 39. Ke1 {[%clk 0:00:53.9]} 39... Qg1+ {[%clk 0:00:12.6]} 40. Kd2
{[%clk 0:00:55.1]} 40... Qd4+ {[%clk 0:00:14.5]} 41. Ke1 {[%clk 0:00:56.1]}
1/2-1/2

[Event "*** Titled Tuesday Blitz"]
[Site "Chess.com"]
[Date "2019.01.01"]
[Round "2"]
[White "Vuk2000"]
[Black "Kangoroo3000"]
[Result "1-0"]
[WhiteElo "2743"]
[BlackElo "2662"]
[TimeControl "180+2"]
[EndTime "13:21:24 PST"]
[Termination "Vuk2000 won by resignation"]

1. d4 {[%clk 0:03:01.9]} 1... Nf6 {[%clk 0:03:00.8]} 2. Bg5 {[%clk 0:03:03]}
2... d5 {[%clk 0:02:59.8]} 3. e3 {[%clk 0:03:00.2]} 3... e6 {[%clk 0:03:00.6]}
4. Nf3 {[%clk 0:02:59.8]} 4... Be7 {[%clk 0:03:00.6]} 5. c4 {[%clk 0:03:00.5]}
5... b6 {[%clk 0:02:55.3]} 6. Nc3 {[%clk 0:03:00.3]} 6... Bb7 {[%clk 0:02:55.4]}
7. Qc2 {[%clk 0:03:01.6]} 7... Nbd7 {[%clk 0:02:53.7]} 8. cxd5 {[%clk
0:03:01.5]} 8... exd5 {[%clk 0:02:44.6]} 9. Bd3 {[%clk 0:02:59.2]} 9... O-O
{[%clk 0:02:43.6]} 10. O-O {[%clk 0:02:59.9]} 10... Re8 {[%clk 0:02:44.8]} 11.
Rfd1 {[%clk 0:02:56.9]} 11... h6 {[%clk 0:02:45.8]} 12. Bf4 {[%clk 0:02:46]}
12... c6 {[%clk 0:02:30.3]} 13. h3 {[%clk 0:02:41.7]} 13... Nf8 {[%clk
0:02:30.1]} 14. Rab1 {[%clk 0:02:31.3]} 14... Bd6 {[%clk 0:02:30.8]} 15. Ne5
{[%clk 0:02:17.2]} 15... a5 {[%clk 0:02:11]} 16. a3 {[%clk 0:02:08.5]} 16... Ne6
{[%clk 0:02:07.3]} 17. Bg3 {[%clk 0:02:02.4]} 17... c5 {[%clk 0:01:57.4]} 18.
Nb5 {[%clk 0:02:03]} 18... Bf8 {[%clk 0:01:52.4]} 19. Bf5 {[%clk 0:01:52.2]}
19... c4 {[%clk 0:01:42.6]} 20. Nf3 {[%clk 0:01:26.3]} 20... Ba6 {[%clk
0:01:34]} 21. Nc3 {[%clk 0:01:22.6]} 21... b5 {[%clk 0:01:35.2]} 22. Bh4 {[%clk
0:00:59.5]} 22... Be7 {[%clk 0:01:25]} 23. b4 {[%clk 0:00:56.2]} 23... cxb3
{[%clk 0:01:19.7]} 24. Qxb3 {[%clk 0:00:56.4]} 24... b4 {[%clk 0:01:16]} 25.
Bxf6 {[%clk 0:00:44.6]} 25... Bc4 {[%clk 0:00:53.9]} 26. Bxe7 {[%clk 0:00:44.5]}
26... Bxb3 {[%clk 0:00:55.3]} 27. Bxd8 {[%clk 0:00:44.3]} 27... Bxd1 {[%clk
0:00:57.2]} 28. Nxd1 {[%clk 0:00:33.8]} 28... Rexd8 {[%clk 0:00:54.6]} 29. axb4
{[%clk 0:00:34.5]} 29... axb4 {[%clk 0:00:45.7]} 30. Kf1 {[%clk 0:00:34.4]}
30... Rdb8 {[%clk 0:00:37.9]} 31. Bxe6 {[%clk 0:00:27]} 31... fxe6 {[%clk
0:00:38.8]} 32. Nb2 {[%clk 0:00:28.4]} 32... Ra2 {[%clk 0:00:32.9]} 33. Ke1
{[%clk 0:00:27.7]} 33... b3 {[%clk 0:00:30.8]} 34. Nd2 {[%clk 0:00:28.4]} 34...
Rc8 {[%clk 0:00:25.4]} 35. Nd3 {[%clk 0:00:25]} 35... Rc3 {[%clk 0:00:14.8]} 36.
Rxb3 {[%clk 0:00:24.3]} 36... Rc1+ {[%clk 0:00:16.2]} 37. Nxc1 {[%clk
0:00:24.9]} 1-0

[Event "*** Titled Tuesday Blitz"]
[Site "Chess.com"]
[Date "2019.01.01"]
[Round "2"]
[White "MapleDanish"]
[Black "northridgehawk"]
[Result "0-1"]
[WhiteElo "2122"]
[BlackElo "2253"]
[TimeControl "180+2"]
[EndTime "13:21:25 PST"]
[Termination "northridgehawk won by resignation"]

1. c4 {[%clk 0:03:01.9]} 1... f5 {[%clk 0:02:58.1]} 2. e4 {[%clk 0:03:01.7]}
2... fxe4 {[%clk 0:02:59.1]} 3. Nc3 {[%clk 0:03:03.3]} 3... Nf6 {[%clk
0:03:00.2]} 4. d3 {[%clk 0:03:04.7]} 4... exd3 {[%clk 0:03:00.9]} 5. Bxd3 {[%clk
0:03:06.3]} 5... e5 {[%clk 0:03:01.8]} 6. Nf3 {[%clk 0:03:07.2]} 6... Bc5 {[%clk
0:03:01.1]} 7. O-O {[%clk 0:03:08.3]} 7... d6 {[%clk 0:03:02.4]} 8. Qc2 {[%clk
0:02:50.1]} 8... Nc6 {[%clk 0:02:56.3]} 9. a3 {[%clk 0:02:51.3]} 9... O-O {[%clk
0:02:57.1]} 10. b4 {[%clk 0:02:21.9]} 10... Bb6 {[%clk 0:02:54.1]} 11. Nd5
{[%clk 0:02:19.5]} 11... h6 {[%clk 0:02:44.6]} 12. Bb2 {[%clk 0:01:31.3]} 12...
Bg4 {[%clk 0:02:26.2]} 13. Nh4 {[%clk 0:01:21.7]} 13... Nxd5 {[%clk 0:02:19.1]}
14. cxd5 {[%clk 0:01:21.9]} 14... Nxb4 {[%clk 0:02:14.7]} 15. Bh7+ {[%clk
0:01:18.1]} 15... Kh8 {[%clk 0:02:11.5]} 16. Ng6+ {[%clk 0:01:18.7]} 16... Kxh7
{[%clk 0:02:12.2]} 17. Nxf8+ {[%clk 0:01:20]} 17... Kg8 {[%clk 0:02:13.2]} 18.
Qh7+ {[%clk 0:01:03.9]} 18... Kxf8 {[%clk 0:02:04.8]} 19. axb4 {[%clk
0:01:04.8]} 19... Kf7 {[%clk 0:01:54.7]} 20. h3 {[%clk 0:00:57.4]} 20... Bd7
{[%clk 0:01:51.1]} 21. Ra3 {[%clk 0:00:57.2]} 21... Qg8 {[%clk 0:01:27.5]} 22.
Rf3+ {[%clk 0:00:36.8]} 22... Ke7 {[%clk 0:01:26.5]} 23. Qe4 {[%clk 0:00:38]}
23... Rf8 {[%clk 0:01:26.4]} 24. Rxf8 {[%clk 0:00:35.6]} 24... Qxf8 {[%clk
0:01:27.1]} 25. Bc1 {[%clk 0:00:36.6]} 25... Qf5 {[%clk 0:01:27.3]} 26. Qh4+
{[%clk 0:00:33.5]} 26... Kf7 {[%clk 0:01:21.3]} 27. Be3 {[%clk 0:00:34.1]} 27...
Qf6 {[%clk 0:01:15.1]} 28. Qh5+ {[%clk 0:00:29.8]} 28... Kg8 {[%clk 0:01:07]}
29. Bxb6 {[%clk 0:00:27.4]} 29... axb6 {[%clk 0:01:08]} 30. Qe2 {[%clk 0:00:26]}
30... Qg5 {[%clk 0:01:03.2]} 31. Kh2 {[%clk 0:00:18.7]} 31... Qf4+ {[%clk
0:01:03.5]} 32. g3 {[%clk 0:00:20.3]} 32... Qxb4 {[%clk 0:01:04.5]} 33. f4
{[%clk 0:00:21.8]} 33... e4 {[%clk 0:01:03.8]} 34. Re1 {[%clk 0:00:22.6]} 34...
Bf5 {[%clk 0:01:01.5]} 35. g4 {[%clk 0:00:23.8]} 35... Bh7 {[%clk 0:01:01.2]}
36. f5 {[%clk 0:00:25.2]} 36... Kf7 {[%clk 0:00:59.2]} 37. Kg3 {[%clk
0:00:25.2]} 37... Qd4 {[%clk 0:00:58.2]} 38. Kf4 {[%clk 0:00:26.2]} 38... Qe5+
{[%clk 0:00:59.2]} 39. Ke3 {[%clk 0:00:27.5]} 39... Qxd5 {[%clk 0:01:00.6]} 40.
Qb2 {[%clk 0:00:27]} 40... Qd3+ {[%clk 0:00:47]} 41. Kf2 {[%clk 0:00:28]} 41...
Qf3+ {[%clk 0:00:44.9]} 42. Kg1 {[%clk 0:00:29.4]} 42... Qg3+ {[%clk 0:00:45.9]}
43. Kf1 {[%clk 0:00:31]} 43... Qxh3+ {[%clk 0:00:47]} 44. Kf2 {[%clk 0:00:32.6]}
44... Qh2+ {[%clk 0:00:45.9]} 0-1

[Event "*** Titled Tuesday Blitz"]
[Site "Chess.com"]
[Date "2019.01.01"]
[Round "2"]
[White "Awentrap"]
[Black "Diwi89"]
[Result "0-1"]
[WhiteElo "2633"]
[BlackElo "2773"]
[TimeControl "180+2"]
[EndTime "13:21:26 PST"]
[Termination "Diwi89 won by resignation"]

1. e4 {[%clk 0:03:01.9]} 1... c5 {[%clk 0:02:58.5]} 2. Nf3 {[%clk 0:03:02.5]}
2... Nc6 {[%clk 0:02:58.4]} 3. d4 {[%clk 0:03:03.2]} 3... cxd4 {[%clk
0:02:58.8]} 4. Nxd4 {[%clk 0:03:05.1]} 4... Nf6 {[%clk 0:02:59.1]} 5. Nc3 {[%clk
0:03:05.9]} 5... e5 {[%clk 0:02:59.8]} 6. Ndb5 {[%clk 0:03:06.8]} 6... d6 {[%clk
0:02:57.6]} 7. Nd5 {[%clk 0:03:07.3]} 7... Nxd5 {[%clk 0:02:55]} 8. exd5 {[%clk
0:03:09.2]} 8... Ne7 {[%clk 0:02:54.5]} 9. c4 {[%clk 0:03:05.1]} 9... f5 {[%clk
0:02:52.2]} 10. Be2 {[%clk 0:03:03.2]} 10... a6 {[%clk 0:02:48.6]} 11. Nc3
{[%clk 0:03:02.2]} 11... g6 {[%clk 0:02:50]} 12. O-O {[%clk 0:02:57.1]} 12...
Bg7 {[%clk 0:02:50.6]} 13. Bd2 {[%clk 0:02:46.9]} 13... O-O {[%clk 0:02:49.7]}
14. b4 {[%clk 0:02:47.6]} 14... e4 {[%clk 0:02:47.3]} 15. f4 {[%clk 0:02:36.3]}
15... Qb6+ {[%clk 0:02:34.5]} 16. Kh1 {[%clk 0:02:36.8]} 16... Bd7 {[%clk
0:02:19.2]} 17. Qb3 {[%clk 0:02:22.3]} 17... Rac8 {[%clk 0:02:19.7]} 18. c5
{[%clk 0:02:21.4]} 18... Qc7 {[%clk 0:02:20.2]} 19. Rac1 {[%clk 0:02:10.2]}
19... Kh8 {[%clk 0:02:21.1]} 20. c6 {[%clk 0:02:06.7]} 20... bxc6 {[%clk
0:02:20.6]} 21. Bxa6 {[%clk 0:01:59.2]} 21... Ra8 {[%clk 0:02:20.6]} 22. Be2
{[%clk 0:01:58.4]} 22... Qb7 {[%clk 0:02:17.7]} 23. dxc6 {[%clk 0:01:52.3]}
23... Bxc6 {[%clk 0:02:10]} 24. b5 {[%clk 0:01:49.7]} 24... Bd7 {[%clk
0:02:11.3]} 25. a4 {[%clk 0:01:41.8]} 25... d5 {[%clk 0:02:12.5]} 26. Na2 {[%clk
0:01:32.7]} 26... d4 {[%clk 0:02:13.2]} 27. Bb4 {[%clk 0:01:24.7]} 27... d3
{[%clk 0:01:45.3]} 28. Bxe7 {[%clk 0:01:14.7]} 28... dxe2 {[%clk 0:01:45.4]} 29.
Rfe1 {[%clk 0:01:15.4]} 29... Rfe8 {[%clk 0:01:46.7]} 30. Bb4 {[%clk 0:01:16.7]}
30... Be6 {[%clk 0:01:47.1]} 31. Qa3 {[%clk 0:00:59.1]} 31... Bxa2 {[%clk
0:01:48.2]} 32. Qxa2 {[%clk 0:00:58.4]} 32... Qxb5 {[%clk 0:01:49.7]} 33. axb5
{[%clk 0:00:51.7]} 33... Rxa2 {[%clk 0:01:50.8]} 34. b6 {[%clk 0:00:45]} 34...
Rb2 {[%clk 0:01:51.6]} 35. Bc5 {[%clk 0:00:45.6]} 35... Kg8 {[%clk 0:01:52.2]}
36. Kg1 {[%clk 0:00:46.8]} 36... e3 {[%clk 0:01:51.4]} 37. g3 {[%clk 0:00:39.9]}
37... Bf8 {[%clk 0:01:44]} 38. Bd4 {[%clk 0:00:38.6]} 38... Rb4 {[%clk
0:01:45.2]} 39. Be5 {[%clk 0:00:30]} 39... Rxb6 {[%clk 0:01:43.2]} 40. Rxe2
{[%clk 0:00:31.4]} 40... Bb4 {[%clk 0:01:44.5]} 41. Rb1 {[%clk 0:00:30.2]} 41...
Bc5 {[%clk 0:01:45]} 42. Rxb6 {[%clk 0:00:31.3]} 42... Bxb6 {[%clk 0:01:46.5]}
43. Kg2 {[%clk 0:00:32.9]} 43... Rd8 {[%clk 0:01:46.7]} 44. Kf3 {[%clk
0:00:33.6]} 44... Kf7 {[%clk 0:01:47.3]} 45. Rc2 {[%clk 0:00:29.9]} 45... Rd2
{[%clk 0:01:39.5]} 46. Rxd2 {[%clk 0:00:30.1]} 46... exd2 {[%clk 0:01:40.9]} 47.
Ke2 {[%clk 0:00:30.7]} 47... Ba5 {[%clk 0:01:42.2]} 48. Bh8 {[%clk 0:00:24.3]}
48... Ke6 {[%clk 0:01:43.2]} 49. Bd4 {[%clk 0:00:19.2]} 49... Kd5 {[%clk
0:01:44.3]} 50. Be3 {[%clk 0:00:20.5]} 50... Ke4 {[%clk 0:01:42.4]} 51. Bxd2
{[%clk 0:00:22]} 51... Bxd2 {[%clk 0:01:43.4]} 52. Kxd2 {[%clk 0:00:23.9]} 52...
Kf3 {[%clk 0:01:45]} 53. Ke1 {[%clk 0:00:24.1]} 53... Kg2 {[%clk 0:01:46.4]} 54.
Ke2 {[%clk 0:00:25.7]} 54... Kxh2 {[%clk 0:01:47.4]} 55. Kf2 {[%clk 0:00:27.5]}
55... h5 {[%clk 0:01:48]} 56. Kf3 {[%clk 0:00:27.5]} 56... Kg1 {[%clk
0:01:49.5]} 0-1

[Event "*** Titled Tuesday Blitz"]
[Site "Chess.com"]
[Date "2019.01.01"]
[Round "2"]
[White "rasmussvane"]
[Black "x-3738459472"]
[Result "0-1"]
[WhiteElo "2670"]
[BlackElo "2527"]
[TimeControl "180+2"]
[EndTime "13:21:29 PST"]
[Termination "x-3738459472 won by resignation"]

1. Nf3 {[%clk 0:01:59.4]} 1... Nf6 {[%clk 0:02:59.4]} 2. g3 {[%clk 0:02:00.5]}
2... g6 {[%clk 0:02:57]} 3. Bg2 {[%clk 0:02:01.8]} 3... Bg7 {[%clk 0:02:58]} 4.
O-O {[%clk 0:02:03.4]} 4... O-O {[%clk 0:02:59.2]} 5. d4 {[%clk 0:02:04.7]} 5...
d6 {[%clk 0:03:00]} 6. b3 {[%clk 0:02:05.9]} 6... c6 {[%clk 0:03:00.1]} 7. Bb2
{[%clk 0:02:07.2]} 7... Qa5 {[%clk 0:03:01.2]} 8. c4 {[%clk 0:02:07.9]} 8... Qh5
{[%clk 0:03:01.1]} 9. Nc3 {[%clk 0:02:02.6]} 9... Bh3 {[%clk 0:03:00.8]} 10. e4
{[%clk 0:02:03.4]} 10... Ng4 {[%clk 0:03:00.4]} 11. Nh4 {[%clk 0:01:52.4]} 11...
Bxg2 {[%clk 0:02:57.8]} 12. Kxg2 {[%clk 0:01:53.1]} 12... e5 {[%clk 0:02:44.3]}
13. h3 {[%clk 0:01:51.3]} 13... Nf6 {[%clk 0:02:42.1]} 14. Nf3 {[%clk
0:01:45.6]} 14... Nbd7 {[%clk 0:02:37.8]} 15. d5 {[%clk 0:01:32.1]} 15... cxd5
{[%clk 0:02:30.9]} 16. cxd5 {[%clk 0:01:11.3]} 16... a6 {[%clk 0:02:26.2]} 17.
a4 {[%clk 0:01:11.2]} 17... Rac8 {[%clk 0:02:26.2]} 18. Rc1 {[%clk 0:01:12.2]}
18... Nc5 {[%clk 0:02:21]} 19. Ba3 {[%clk 0:00:49]} 19... Bh6 {[%clk 0:02:15.6]}
20. Rc2 {[%clk 0:00:45]} 20... Rfd8 {[%clk 0:02:12.8]} 21. b4 {[%clk 0:00:41.9]}
21... Ncd7 {[%clk 0:02:02.7]} 22. Qd3 {[%clk 0:00:43]} 22... Nb6 {[%clk
0:01:56.8]} 23. Bc1 {[%clk 0:00:37]} 23... Bxc1 {[%clk 0:01:49.9]} 24. Rfxc1
{[%clk 0:00:38.9]} 24... Qh6 {[%clk 0:01:45.5]} 25. a5 {[%clk 0:00:32]} 25...
Nbd7 {[%clk 0:01:44.9]} 26. Ne2 {[%clk 0:00:33.3]} 26... Qf8 {[%clk 0:01:43.4]}
27. Qe3 {[%clk 0:00:32.1]} 27... Rxc2 {[%clk 0:01:43]} 28. Rxc2 {[%clk 0:00:33]}
28... Rc8 {[%clk 0:01:44]} 29. Qc1 {[%clk 0:00:34.6]} 29... Rxc2 {[%clk
0:01:43.6]} 30. Qxc2 {[%clk 0:00:36.5]} 30... Qb8 {[%clk 0:01:42.3]} 31. Nd2
{[%clk 0:00:35.7]} 31... b6 {[%clk 0:01:42.1]} 32. Nc4 {[%clk 0:00:29.8]} 32...
bxa5 {[%clk 0:01:42.1]} 33. bxa5 {[%clk 0:00:30.6]} 33... Qb4 {[%clk 0:01:42.1]}
34. Qc3 {[%clk 0:00:29.8]} 34... Qc5 {[%clk 0:01:40.6]} 35. Qd3 {[%clk
0:00:22.8]} 35... h5 {[%clk 0:01:38.6]} 36. h4 {[%clk 0:00:23.1]} 36... Ng4
{[%clk 0:01:38.3]} 37. Ne3 {[%clk 0:00:23.4]} 37... Nxe3+ {[%clk 0:01:37.2]} 38.
Qxe3 {[%clk 0:00:24.8]} 38... Qxe3 {[%clk 0:01:33.8]} 39. fxe3 {[%clk
0:00:26.7]} 39... Nc5 {[%clk 0:01:35.3]} 40. Nc1 {[%clk 0:00:21.5]} 40... Nxe4
{[%clk 0:01:26.5]} 41. Nd3 {[%clk 0:00:22.9]} 41... Nc5 {[%clk 0:01:25.5]} 42.
Nb4 {[%clk 0:00:23.9]} 42... f5 {[%clk 0:01:22.8]} 43. Kf3 {[%clk 0:00:25.3]}
43... Kg7 {[%clk 0:01:23.7]} 44. Nc6 {[%clk 0:00:26.8]} 44... Kf6 {[%clk
0:01:21.8]} 45. Nb4 {[%clk 0:00:27.5]} 45... e4+ {[%clk 0:01:22.7]} 46. Kf2
{[%clk 0:00:24.4]} 46... Nd3+ {[%clk 0:01:21.8]} 47. Nxd3 {[%clk 0:00:22.9]}
47... exd3 {[%clk 0:01:23.7]} 48. Ke1 {[%clk 0:00:18.3]} 48... Ke5 {[%clk
0:01:24.6]} 49. Kd1 {[%clk 0:00:15.5]} 49... Kxd5 {[%clk 0:01:25.3]} 50. Ke1
{[%clk 0:00:16.4]} 50... Ke4 {[%clk 0:01:26.2]} 51. Kd2 {[%clk 0:00:17.6]} 51...
d5 {[%clk 0:01:27.5]} 0-1